bitfinex/quotes_SOLUSD_20250419
["timestamp","ask_amount","ask_price","bid_price","bid_amount"]
[1745061199432,7.18442416,139.19,139.16,7.78351078]
[1745061199648,7.18442416,139.19,139.17,7.78351078]
[1745061200139,4.58087982,139.18,139.17,7.78351078]
[1745061201149,7.18442416,139.19,139.17,7.78351078]
[1745061202347,7.21359209,139.21,139.18,7.78351078]
[1745061202647,4.58325989,139.2,139.19,7.78351078]
[1745061207052,7.21359209,139.21,139.19,7.78351078]
[1745061207352,7.21359209,139.21,139.2,7.78351078]
[1745061207949,11.80246893,139.21,139.2,7.78351078]
[1745061208827,11.80246893,139.21,139.19,33.78351078]
[1745061209432,7.21359209,139.21,139.19,33.78351078]
[1745061210353,4.59105865,139.2,139.19,33.78351078]
[1745061212056,0.03,139.21,139.19,92.31533001]
[1745061212230,0.03,139.22,139.2,57.56720276]
[1745061212437,0.03,139.22,139.2,59.72236942]
[1745061213054,0.03,139.22,139.21,33.78351078]
[1745061218852,0.03,139.22,139.21,26.0]
[1745061219450,0.03,139.22,139.21,7.78351078]
[1745061219758,0.03,139.22,139.2,7.78351078]
[1745061220257,0.03,139.22,139.19,26.0]
[1745061220258,0.03,139.22,139.19,33.78351078]
[1745061220461,0.03,139.22,139.19,26.0]
[1745061220643,7.21287602,139.22,139.2,7.78351078]
[1745061220957,7.21287602,139.22,139.19,26.0]
[1745061221258,7.21287602,139.22,139.19,33.78351078]
[1745061221646,7.21287602,139.22,139.19,26.0]
[1745061221844,7.21287602,139.22,139.19,33.78351078]
[1745061227555,25.17006607,139.22,139.18,7.78351078]
[1745061227862,7.78351078,139.21,139.17,33.78351078]
[1745061228258,7.78351078,139.21,139.17,26.0]
[1745061228668,7.78351078,139.21,139.17,33.78351078]
[1745061229057,7.18390804,139.2,139.17,33.78351078]
[1745061229674,32.92718893,139.2,139.15,21.76351078]
[1745061229851,7.78351078,139.19,139.15,47.76351078]
[1745061231148,7.18494036,139.18,139.15,39.98]
[1745061231355,7.18494036,139.18,139.15,47.76351078]
[1745061232573,7.18494036,139.18,139.16,7.78351078]
[1745061233255,7.18442416,139.19,139.16,7.78351078]
[1745061235250,32.92899536,139.19,139.15,47.76351078]
[1745061235470,32.92899536,139.19,139.15,26.0]
[1745061236669,32.92899536,139.19,139.15,33.78351078]
[1745061237765,7.78351078,139.18,139.14,0.063]
[1745061237962,7.78351078,139.18,139.14,26.063]
[1745061238271,7.78351078,139.18,139.14,33.84651078]
[1745061238657,7.78351078,139.17,139.14,0.063]
[1745061239153,1.5717,139.18,139.14,0.063]
[1745061239154,7.78351078,139.16,139.14,0.063]
[1745061240278,7.18648939,139.15,139.14,0.063]
[1745061241665,7.18648939,139.15,139.14,7.84651078]
[1745061242474,25.14958012,139.17,139.14,7.84651078]
[1745061243454,25.14958012,139.17,139.14,0.063]
[1745061243984,25.14958012,139.17,139.14,7.84651078]
[1745061245660,25.14958012,139.17,139.14,0.063]
[1745061245980,32.9330909,139.17,139.14,0.063]
[1745061246177,7.78351078,139.16,139.14,0.063]
[1745061247180,7.78351078,139.15,139.14,0.063]
[1745061247568,14.97000017,139.15,139.14,0.063]
[1745061247775,7.18648939,139.15,139.14,0.063]
[1745061249668,25.14958012,139.17,139.14,0.063]
[1745061249869,32.9330909,139.17,139.14,0.063]
[1745061250066,25.14958012,139.17,139.14,7.84651078]
[1745061251287,25.14958012,139.17,139.14,0.063]
[1745061255775,7.78351078,139.16,139.14,0.063]
[1745061256187,32.9330909,139.17,139.14,0.063]
[1745061256771,7.78351078,139.16,139.14,0.063]
[1745061257181,32.9330909,139.17,139.14,0.063]
[1745061260295,7.18648939,139.15,139.14,0.063]
[1745061267173,25.14958012,139.17,139.14,0.063]
[1745061268603,25.14958012,139.17,139.15,7.78351078]
[1745061269801,25.14548458,139.19,139.15,7.78351078]
[1745061271694,25.14548458,139.19,139.16,7.78351078]
[1745061273195,25.14548458,139.19,139.15,7.78351078]
[1745061277594,32.92899536,139.19,139.15,7.78351078]
[1745061280988,7.18442416,139.19,139.18,7.78351078]
[1745061281998,17.98782771,139.22,139.18,7.78351078]
[1745061282191,17.98782771,139.22,139.19,7.78351078]
[1745061284809,0.03,139.22,139.19,7.78351078]
[1745061285013,0.03,139.22,139.2,7.78351078]
[1745061285908,0.03,139.22,139.19,7.78351078]
[1745061293309,0.03,139.22,139.18,7.78351078]
[1745061293518,7.81351078,139.22,139.18,7.78351078]
[1745061293718,7.81351078,139.22,139.16,7.78351078]
[1745061293719,7.78351078,139.2,139.16,7.78351078]
[1745061293905,7.78351078,139.2,139.15,46.3893]
[1745061293906,7.78351078,139.19,139.15,7.78351078]
[1745061294218,7.18494036,139.18,139.15,7.78351078]
[1745061296214,25.14600738,139.19,139.15,7.78351078]
[1745061300395,7.78351078,139.19,139.15,7.78351078]
[1745061300804,7.78351078,139.19,139.14,26.063]
[1745061300805,7.78351078,139.19,139.14,33.84651078]
[1745061301000,0.03,139.22,139.14,0.063]
[1745061301001,7.78351078,139.18,139.14,0.063]
[1745061301318,7.78351078,139.19,139.14,7.84651078]
[1745061302115,9.33271078,139.2,139.15,7.78351078]
[1745061303114,25.14548458,139.19,139.15,7.78351078]
[1745061304716,32.92899536,139.19,139.15,7.78351078]
[1745061305024,32.92899536,139.19,139.14,0.063]
[1745061305215,32.92899536,139.19,139.14,7.84651078]
[1745061307827,32.92899536,139.19,139.14,0.063]
[1745061308002,32.92899536,139.19,139.14,7.84651078]
[1745061308424,7.78351078,139.16,139.14,0.063]
[1745061308910,7.78351078,139.15,139.14,0.063]
[1745061309429,7.78351078,139.16,139.14,0.063]
[1745061309813,7.78351078,139.15,139.14,0.063]
[1745061310733,14.97000017,139.15,139.14,0.063]
[1745061311631,7.18648939,139.15,139.14,0.063]
[1745061313632,7.18597298,139.16,139.14,0.063]
[1745061316131,7.18597298,139.16,139.14,7.84651078]
[1745061316729,7.18597298,139.16,139.15,7.78351078]
[1745061317921,7.18494036,139.18,139.15,7.78351078]
[1745061319540,7.18494036,139.18,139.16,7.78351078]
[1745061320038,7.18339199,139.21,139.17,7.78351078]
[1745061320218,7.18339199,139.21,139.18,7.78351078]
[1745061320418,25.14187198,139.21,139.18,7.78351078]
[1745061320816,25.14187198,139.21,139.17,7.78351078]
[1745061323853,25.14187198,139.21,139.18,7.78351078]
[1745061325040,25.14187198,139.21,139.17,7.78351078]
[1745061327845,17.95847999,139.21,139.18,7.78351078]
[1745061329551,17.95847999,139.21,139.19,7.78351078]
[1745061330121,7.21287602,139.22,139.2,7.78351078]
[1745061331245,0.03,139.22,139.2,7.78351078]
[1745061331737,0.03,139.22,139.21,7.78351078]
[1745061331949,0.03,139.22,139.2,7.78351078]
[1745061334137,0.03,139.22,139.21,7.78351078]
[1745061339429,0.03,139.22,139.19,7.78351078]
[1745061339839,0.03,139.22,139.18,7.78351078]
[1745061342355,25.17006607,139.22,139.18,7.78351078]
[1745061343036,7.21287602,139.22,139.21,7.78351078]
[1745061343239,0.03,139.22,139.21,7.78351078]
[1745061347456,0.03,139.22,139.21,54.58817723]
[1745061347957,0.03,139.22,139.21,28.58817723]
[1745061348555,0.03,139.22,139.21,34.25505908]
[1745061349651,0.03,139.22,139.21,35.90485908]
[1745061349859,0.03,139.23,139.22,52.43315964]
[1745061350060,0.03,139.23,139.22,66.47315964]
[1745061351545,0.03,139.23,139.22,68.62802244]
[1745061352542,0.03,139.23,139.22,72.28893631]
[1745061353658,0.03,139.23,139.22,66.47315964]
[1745061354167,0.03,139.23,139.22,7.78351078]
[1745061354344,0.03,139.23,139.22,33.78351078]
[1745061359069,0.03,139.23,139.22,52.43315964]
[1745061359961,0.03,139.23,139.22,54.58802244]
[1745061360145,0.03,139.23,139.22,28.58802244]
[1745061360971,0.03,139.24,139.23,18.64964886]
[1745061361152,0.03,139.25,139.23,28.06755964]
[1745061361352,0.03,139.25,139.24,14.04]
[1745061362955,0.03,139.25,139.24,23.97806406]
[1745061364471,0.03,139.25,139.24,42.62771292]
[1745061366971,0.03,139.27,139.26,44.64964886]
[1745061367277,0.03,139.28,139.27,7.78351078]
[1745061369970,0.03,139.28,139.27,26.43315964]
[1745061371481,0.03,139.28,139.27,28.58724881]
[1745061371786,0.03,139.28,139.27,26.43315964]
[1745061372167,0.03,139.28,139.27,28.58724881]
[1745061372873,0.03,139.28,139.27,59.72129193]
[1745061373081,0.03,139.29,139.28,83.56720276]
[1745061373259,0.03,139.31,139.28,83.56720276]
[1745061373463,0.03,139.31,139.29,42.62693952]
[1745061373661,0.03,139.31,139.3,33.78351078]
[1745061374662,0.03,139.31,139.3,35.93713604]
[1745061376483,0.03,139.31,139.3,33.78351078]
[1745061377285,0.03,139.31,139.3,35.93713604]
[1745061377461,0.03,139.32,139.31,18.64964886]
[1745061377665,0.03,139.32,139.31,108.93315964]
[1745061378780,0.03,139.33,139.31,128.93315964]
[1745061378982,0.03,139.34,139.32,26.43315964]
[1745061379175,0.03,139.34,139.33,9.93667233]
[1745061379960,0.03,139.34,139.33,15.77898851]
[1745061380763,0.03,139.34,139.33,34.42863737]
[1745061381684,0.03,139.34,139.33,28.58632119]
[1745061382291,0.03,139.34,139.33,111.08632119]
[1745061383187,0.03,139.34,139.33,108.93315964]
[1745061386992,0.03,139.34,139.33,111.80404171]
[1745061390798,0.03,139.34,139.33,125.78404171]
[1745061391092,0.03,139.34,139.33,82.5]
[1745061393496,7.20669011,139.34,139.33,82.5]
[1745061394099,7.20669011,139.34,139.32,33.78351078]
[1745061394895,7.20669011,139.34,139.32,26.0]
[1745061396898,14.96071597,139.33,139.32,26.0]
[1745061397098,32.90372896,139.33,139.28,21.76351078]
[1745061397300,32.90372896,139.33,139.31,26.0]
[1745061397881,7.78351078,139.32,139.31,26.0]
[1745061398803,32.90372896,139.33,139.31,26.0]
[1745061398982,25.12021818,139.33,139.31,26.0]
[1745061399184,7.17720519,139.33,139.31,26.0]
[1745061400300,7.17720519,139.33,139.32,26.0]
[1745061400508,7.17720519,139.33,139.31,7.78351078]
[1745061400806,7.20678127,139.34,139.32,33.78351078]
[1745061401212,7.20678127,139.34,139.32,26.0]
[1745061401600,14.99029205,139.34,139.31,26.0]
[1745061401789,14.99029205,139.34,139.32,26.0]
[1745061404907,14.99029205,139.34,139.3,7.78351078]
[1745061405109,7.78351078,139.33,139.31,26.0]
[1745061405405,7.78351078,139.32,139.27,21.76351078]
[1745061405601,7.78351078,139.32,139.27,7.78351078]
[1745061405908,7.78351078,139.32,139.25,82.563]
[1745061405909,1.5899,139.3,139.26,7.78351078]
[1745061406210,1.5899,139.3,139.26,7.84651078]
[1745061406508,9.37341078,139.3,139.26,0.063]
[1745061406709,7.17926627,139.29,139.28,26.0]
[1745061410116,14.96277705,139.29,139.26,26.063]
[1745061410502,14.96277705,139.29,139.27,26.0]
[1745061410899,32.91094274,139.29,139.26,0.063]
[1745061411801,7.17926627,139.29,139.26,7.84651078]
[1745061413319,7.17926627,139.29,139.26,33.84651078]
[1745061417725,7.17926627,139.29,139.27,7.78351078]
[1745061418221,7.17926627,139.29,139.26,33.84651078]
[1745061418962,17.9729067,139.34,139.29,26.0]
[1745061419113,17.9729067,139.34,139.31,7.78351078]
[1745061419304,17.9729067,139.34,139.3,7.78351078]
[1745061419509,25.75641748,139.34,139.29,33.78351078]
[1745061420023,7.17720519,139.33,139.29,33.78351078]
[1745061422629,7.17720519,139.33,139.3,7.78351078]
[1745061422821,7.20669054,139.34,139.32,7.78351078]
[1745061423136,0.03,139.34,139.32,7.78351078]
[1745061423337,0.03,139.34,139.33,7.78351078]
[1745061428629,0.03,139.34,139.33,29.30404171]
[1745061429227,0.03,139.34,139.33,43.28404171]
[1745061430236,0.03,139.35,139.34,18.64964886]
[1745061430447,0.03,139.35,139.34,26.43315964]
[1745061430821,0.03,139.35,139.34,29.30383568]
[1745061432238,0.03,139.37,139.36,44.64964886]
[1745061432439,0.03,139.38,139.36,83.56720276]
[1745061432742,0.03,139.38,139.37,7.78351078]
[1745061433133,0.03,139.45,139.39,18.64964886]
[1745061433340,0.03,139.45,139.42,26.0]
[1745061433341,7.20138289,139.45,139.42,26.0]
[1745061433521,0.03,139.45,139.44,7.78351078]
[1745061434225,0.03,139.45,139.44,26.43315964]
[1745061434439,0.03,139.45,139.44,7.78351078]
[1745061435243,0.03,139.45,139.44,12.04752446]
[1745061437049,0.03,139.45,139.44,42.74469778]
[1745061437450,0.03,139.45,139.44,30.69717332]
[1745061440131,0.03,139.45,139.44,12.04752446]
[1745061442350,0.03,139.45,139.44,26.96366624]
[1745061443034,0.03,139.45,139.44,14.91614178]
[1745061443351,0.03,139.45,139.44,28.87614178]
[1745061443524,0.03,139.45,139.44,26.00752446]
[1745061443725,0.03,139.45,139.44,44.65717332]
[1745061444244,0.03,139.45,139.44,26.00752446]
[1745061444433,0.03,139.45,139.44,52.00752446]
[1745061444631,0.03,139.45,139.43,12.04752446]
[1745061444850,0.03,139.45,139.44,26.0]
[1745061446130,0.03,139.45,139.44,38.04752446]
[1745061452155,0.03,139.45,139.44,26.0]
[1745061452460,0.03,139.45,139.44,38.04752446]
[1745061455256,0.03,139.45,139.44,33.71060967]
[1745061457163,0.03,139.45,139.44,26.0]
[1745061457339,0.03,139.45,139.44,33.71060967]
[1745061460167,0.03,139.45,139.43,7.71060967]
[1745061462165,0.03,139.45,139.43,26.0]
[1745061462371,0.03,139.45,139.43,33.71060967]
[1745061467046,0.03,139.45,139.39,18.64964886]
[1745061467242,7.74060967,139.45,139.41,7.71060967]
[1745061468069,7.74060967,139.45,139.41,26.0]
[1745061468270,7.74060967,139.45,139.41,33.71060967]
[1745061469075,7.17154331,139.44,139.41,33.71060967]
[1745061472255,8.74714331,139.44,139.41,26.0]
[1745061474690,16.45775298,139.44,139.38,13.96]
[1745061474864,7.71060967,139.42,139.38,26.0]
[1745061475170,7.71060967,139.42,139.38,33.71060967]
[1745061475366,7.71060967,139.42,139.38,26.0]
[1745061475577,7.71060967,139.4,139.34,14.023]
[1745061475869,34.33381493,139.39,139.34,7.77360967]
[1745061476458,34.33381493,139.39,139.35,26.0]
[1745061478073,26.62320526,139.39,139.35,33.71060967]
[1745061479984,8.68791579,139.39,139.35,26.0]
[1745061480156,7.17411579,139.39,139.37,7.71060967]
[1745061480574,7.17411579,139.39,139.36,7.71060967]
[1745061483274,7.17360114,139.4,139.36,7.71060967]
[1745061483481,14.88421081,139.4,139.35,26.0]
[1745061483780,14.88421081,139.4,139.35,33.71060967]
[1745061484178,32.81821367,139.4,139.35,33.71060967]
[1745061484372,7.71060967,139.37,139.34,0.063]
[1745061484678,1.6383,139.38,139.34,7.77360967]
[1745061485264,7.17514529,139.37,139.34,7.77360967]
[1745061485460,7.71060967,139.36,139.34,0.063]
[1745061486870,7.71060967,139.35,139.34,0.063]
[1745061487466,14.88678476,139.35,139.34,0.063]
[1745061488385,14.88678476,139.35,139.34,1e-08]
[1745061488386,16.52508476,139.35,139.34,1e-08]
[1745061493968,16.52508476,139.35,139.28,0.063]
[1745061493969,18.64964886,139.34,139.28,0.063]
[1745061494272,7.71060967,139.29,139.28,0.063]
[1745061494486,7.71060967,139.29,139.26,0.063]
[1745061494676,7.71060967,139.28,139.26,0.063]
[1745061495385,7.71060967,139.27,139.26,0.063]
[1745061495776,7.71060967,139.27,139.25,0.063]
[1745061496092,7.71060967,139.26,139.25,0.063]
[1745061496476,14.89142253,139.26,139.25,0.063]
[1745061497683,7.18081286,139.26,139.25,0.063]
[1745061498072,7.18043971,139.27,139.25,0.063]
[1745061501591,7.17978173,139.28,139.25,0.063]
[1745061502589,7.17946171,139.29,139.27,12.08643081]
[1745061503689,30.0315777,139.32,139.27,12.08643081]
[1745061503690,7.17823558,139.31,139.27,12.08643081]
[1745061504069,19.26466639,139.31,139.27,12.08643081]
[1745061507791,37.21025536,139.31,139.26,12.08643081]
[1745061508000,12.08643081,139.3,139.25,38.14943081]
[1745061508203,37.21566687,139.28,139.25,0.063]
[1745061508383,12.08643081,139.27,139.25,0.063]
[1745061508900,12.08643081,139.26,139.25,0.063]
[1745061509797,19.26724367,139.26,139.25,0.063]
[1745061520111,19.26724367,139.26,139.25,1e-08]
[1745061521211,14.91961785,139.26,139.25,1e-08]
[1745061528410,7.18081286,139.26,139.25,1e-08]
[1745061531114,7.73880499,139.27,139.25,1e-08]
[1745061531115,7.18029726,139.27,139.25,1e-08]
[1745061535230,14.91910225,139.27,139.25,1e-08]
[1745061536027,7.73880499,139.26,139.25,1e-08]
[1745061537524,14.91961785,139.26,139.25,1e-08]
[1745061540813,7.18081286,139.26,139.25,1e-08]
[1745061544229,25.12562813,139.3,139.25,1e-08]
[1745061544531,7.73880499,139.29,139.25,7.738805]
[1745061544829,7.73880499,139.29,139.25,1e-08]
[1745061545622,7.73880499,139.27,139.25,1e-08]
[1745061545816,7.73880499,139.26,139.25,1e-08]
[1745061546215,14.91961785,139.26,139.25,1e-08]
[1745061546717,35.10346671,139.26,139.25,1e-08]
[1745061549130,18.64964886,139.25,139.22,1e-08]
[1745061549318,7.73880499,139.23,139.22,1e-08]
[1745061550314,14.92116511,139.23,139.22,1e-08]
[1745061550745,32.87706541,139.23,139.2,0.063]
[1745061552033,25.13826042,139.23,139.2,0.063]
[1745061552225,7.18236012,139.23,139.21,7.73880499]
[1745061552728,14.92013353,139.25,139.2,0.063]
[1745061552919,7.73880499,139.23,139.2,0.063]
[1745061553113,7.73880499,139.22,139.2,0.063]
[1745061553319,7.73880499,139.23,139.2,0.063]
[1745061553526,7.73880499,139.21,139.2,0.063]
[1745061554057,14.92219698,139.21,139.2,0.063]
[1745061555415,7.18339199,139.21,139.2,0.063]
[1745061557030,14.92219698,139.21,139.2,0.063]
[1745061559843,7.18339199,139.21,139.2,0.063]
[1745061560022,14.92219698,139.21,139.2,0.063]
[1745061560923,14.92219698,139.21,139.19,0.063]
[1745061561125,7.73880499,139.2,139.19,0.063]
[1745061563226,14.92271303,139.2,139.19,0.063]
[1745061563830,14.92271303,139.2,139.18,0.063]
[1745061564037,7.73880499,139.19,139.17,1e-08]
[1745061564352,7.73880499,139.18,139.17,1e-08]
[1745061565140,26.38845385,139.18,139.14,0.063]
[1745061565453,7.73880499,139.15,139.14,0.063]
[1745061566037,7.73880499,139.15,139.13,0.063]
[1745061566236,7.73880499,139.14,139.13,0.063]
[1745061566436,7.73880499,139.14,139.13,1e-08]
[1745061567035,26.38845385,139.14,139.13,1e-08]
[1745061567243,33.57545974,139.14,139.13,1e-08]
[1745061567558,38.22808594,139.14,139.13,1e-08]
[1745061569157,19.57843708,139.14,139.13,1e-08]
[1745061569653,14.92581088,139.14,139.13,1e-08]
[1745061570459,7.18700589,139.14,139.13,1e-08]
[1745061573258,7.18597298,139.16,139.13,7.738805]
[1745061573464,7.18545663,139.17,139.13,7.738805]
[1745061573648,7.18545663,139.17,139.14,7.73880499]
[1745061575060,7.18545663,139.17,139.15,7.73880499]
[1745061575242,7.18517128,139.18,139.16,7.73880499]
[1745061575442,25.14496438,139.2,139.16,7.73880499]
[1745061575837,32.88376937,139.2,139.16,7.73880499]
[1745061576865,7.73880499,139.17,139.13,1e-08]
[1745061577158,7.73880499,139.14,139.13,1e-08]
[1745061577463,7.73880499,139.15,139.13,1e-08]
[1745061578960,7.18700589,139.14,139.13,1e-08]
[1745061580270,7.18648939,139.15,139.13,1e-08]
[1745061581862,32.88609626,139.18,139.14,7.73880499]
[1745061582062,25.14729127,139.18,139.14,7.73880499]
[1745061582262,25.14729127,139.18,139.15,7.73880499]
[1745061583277,25.14729127,139.18,139.16,7.73880499]
[1745061583664,7.18494036,139.18,139.16,7.73880499]
[1745061583877,25.1437896,139.2,139.16,7.73880499]
[1745061585188,37.24395429,139.2,139.16,12.10016469]
[1745061585760,25.1437896,139.2,139.16,12.10016469]
[1745061585963,25.1437896,139.2,139.17,12.10016469]
[1745061586379,7.18390804,139.2,139.19,12.10016469]
[1745061587481,25.13947009,139.23,139.19,12.10016469]
[1745061590579,37.23963478,139.23,139.19,12.10016469]
[1745061590787,37.23963478,139.23,139.18,12.10016469]
[1745061591598,12.10016469,139.22,139.17,12.10016469]
[1745061591783,12.10016469,139.21,139.16,12.10016469]
[1745061592278,7.18390804,139.2,139.17,12.10016469]
[1745061594974,7.18390804,139.2,139.19,12.10016469]
[1745061595172,25.14236866,139.21,139.17,12.10016469]
[1745061595574,37.24253335,139.21,139.17,12.10016469]
[1745061597367,37.24253335,139.21,139.16,38.10016469]
[1745061597568,25.14236866,139.21,139.17,12.10016469]
[1745061597877,7.18339199,139.21,139.19,12.10016469]
[1745061598590,7.18339199,139.21,139.18,12.10016469]
[1745061598889,7.18287602,139.22,139.18,12.10016469]
[1745061599987,7.18287602,139.22,139.19,12.10016469]
[1745061601190,37.24023076,139.22,139.17,12.10016469]
[1745061601495,12.10016469,139.21,139.16,38.10016469]
[1745061602193,7.18390804,139.2,139.16,38.10016469]
[1745061602573,7.18390804,139.2,139.17,12.10016469]
[1745061604803,7.18390804,139.2,139.16,12.10016469]
[1745061605300,25.14367815,139.2,139.16,12.10016469]
[1745061606902,37.24384284,139.2,139.16,12.10016469]
[1745061607398,32.88767734,139.2,139.16,7.74399919]
[1745061609805,25.14367815,139.2,139.16,7.74399919]
[1745061610497,32.88767734,139.2,139.16,7.74399919]
[1745061612496,32.88767734,139.2,139.15,7.74399919]
[1745061612804,7.74399919,139.19,139.15,7.74399919]
[1745061614008,7.18494036,139.18,139.15,7.74399919]
[1745061615208,25.14729127,139.18,139.15,7.74399919]
[1745061615404,25.14729127,139.18,139.14,7.74399919]
[1745061615601,7.74399919,139.16,139.13,1e-08]
[1745061615912,7.74399919,139.14,139.13,1e-08]
[1745061616106,14.93100508,139.14,139.13,1e-08]
[1745061618302,7.18700589,139.14,139.13,1e-08]
[1745061619815,7.18648939,139.15,139.13,1e-08]
[1745061620199,14.93048858,139.15,139.13,1e-08]
[1745061621098,7.74399919,139.14,139.13,1e-08]
[1745061621619,14.93100508,139.14,139.13,1e-08]
[1745061628919,51.54816867,139.14,139.1,0.063]
[1745061629110,14.932555,139.11,139.1,0.063]
[1745061629297,14.932555,139.11,139.09,0.063]
[1745061629498,12.4031452,139.1,139.09,0.063]
[1745061630413,4.65914601,139.1,139.09,0.063]
[1745061631114,19.5922178,139.1,139.09,0.063]
[1745061631324,11.84821861,139.1,139.09,0.063]
[1745061635125,19.5922178,139.1,139.09,0.063]
[1745061636418,11.84821861,139.1,139.09,0.063]
[1745061639625,19.5922178,139.1,139.09,0.063]
[1745061640620,11.84821861,139.1,139.09,0.063]
[1745061646209,11.84821861,139.1,139.09,1.063]
[1745061646924,19.5922178,139.1,139.09,1.063]
[1745061654234,19.5922178,139.1,139.08,0.063]
[1745061654416,7.74399919,139.09,139.08,0.063]
[1745061655331,12.4031452,139.09,139.08,0.063]
[1745061656025,31.05279406,139.09,139.06,1e-08]
[1745061656331,7.74399919,139.07,139.06,1e-08]
[1745061656716,12.4031452,139.07,139.06,1e-08]
[1745061658335,19.59376862,139.07,139.06,1e-08]
[1745061660440,11.84976943,139.07,139.06,1e-08]
[1745061666842,19.59376862,139.07,139.06,1e-08]
[1745061669444,19.59376862,139.07,139.05,0.063]
[1745061669739,7.74399919,139.06,139.05,0.063]
[1745061670741,14.9351397,139.06,139.05,0.063]
[1745061671145,19.59428571,139.06,139.05,0.063]
[1745061672147,71.72458585,139.06,139.03,1e-08]
[1745061672342,7.74399919,139.04,139.03,1e-08]
[1745061672520,12.4031452,139.04,139.03,1e-08]
[1745061672929,19.59532011,139.04,139.03,1e-08]
[1745061675152,50.57131687,139.04,139.03,1e-08]
[1745061675542,69.22096573,139.04,139.03,1e-08]
[1745061675949,18.64964886,139.03,139.0,0.063]
[1745061676251,7.74399919,139.01,139.0,0.063]
[1745061676941,12.4031452,139.01,139.0,0.063]
[1745061677237,19.59687226,139.01,139.0,0.063]
[1745061679057,11.85287307,139.01,139.0,0.063]
[1745061679233,19.59687226,139.01,139.0,0.063]
[1745061686328,44.64964886,139.0,138.95,0.063]
[1745061686639,45.36729074,139.01,138.95,0.063]
[1745061686830,51.60118993,139.01,138.96,7.74399919]
[1745061687033,43.85719074,139.01,138.97,7.74399919]
[1745061687746,4.65914601,139.0,138.96,7.74399919]
[1745061688133,7.19476221,138.99,138.95,7.9081]
[1745061688330,7.19476221,138.99,138.97,7.74399919]
[1745061688731,7.19431919,139.0,138.98,7.74399919]
[1745061688944,7.19269222,139.03,138.99,7.74399919]
[1745061689346,14.93669141,139.03,138.98,7.74399919]
[1745061689545,7.19269222,139.03,138.98,7.74399919]
[1745061689740,4.65087765,139.02,138.98,7.74399919]
[1745061690060,7.19372706,139.01,138.98,7.74399919]
[1745061690654,14.93772625,139.01,138.97,7.74399919]
[1745061691034,4.65087765,139.0,138.97,7.74399919]
[1745061691235,4.65087765,139.0,138.99,7.74399919]
[1745061695170,11.84512225,139.0,138.99,7.74399919]
[1745061699958,11.84512225,139.0,138.98,7.74399919]
[1745061700354,11.84512225,139.0,138.97,7.74399919]
[1745061700779,4.65087765,138.99,138.97,7.74399919]
[1745061701355,4.65087765,138.99,138.98,7.74399919]
[1745061703667,11.84563986,138.99,138.98,7.74399919]
[1745061703879,11.84563986,138.99,138.97,7.74399919]
[1745061704757,4.65087765,138.98,138.97,7.74399919]
[1745061706189,4.65087765,138.98,138.95,33.9081]
[1745061706478,4.65087765,138.98,138.97,7.74399919]
[1745061709170,11.84615754,138.98,138.97,7.74399919]
[1745061711183,4.65087765,138.98,138.97,7.74399919]
[1745061714989,4.65087765,138.98,138.97,12.06147778]
[1745061715173,17.98071338,139.04,139.0,26.0]
[1745061715174,7.19256525,139.04,139.0,26.0]
[1745061715472,7.19256525,139.04,139.03,7.74399919]
[1745061715677,7.22183742,139.05,139.03,7.74399919]
[1745061716681,0.03,139.05,139.03,7.74399919]
[1745061717269,0.03,139.05,139.04,7.74399919]
[1745061722258,0.03,139.05,139.0,34.1943]
[1745061722579,0.03,139.05,139.03,7.74399919]
[1745061725486,0.03,139.05,139.04,7.74399919]
[1745061729989,0.03,139.05,139.02,7.74399919]
[1745061730572,0.03,139.05,139.01,26.0]
[1745061730788,0.03,139.05,139.01,33.74399919]
[1745061730977,7.22165767,139.05,139.01,33.74399919]
[1745061731590,7.22165767,139.05,139.02,7.74399919]
[1745061732892,7.22165767,139.05,139.03,7.74399919]
[1745061733093,0.03,139.05,139.03,7.74399919]
[1745061734100,0.03,139.05,139.04,7.74399919]
[1745061734797,0.03,139.05,139.04,83.36964481]
[1745061735295,0.03,139.05,139.04,56.70895299]
[1745061735885,0.03,139.05,139.04,33.74399919]
[1745061737983,0.03,139.05,139.04,83.36964481]